[Event "Caplin Hastings Masters 2023-24"]
[Site "Hastings"]
[Date "2023.12.30"]
[Round "3.27"]
[White "Ortiz Sanchez, Luis"]
[Black "Brown, Thomas"]
[Result "0-1"]
[ECO "B08"]
[WhiteElo "1863"]
[BlackElo "2095"]
[Annotator "NA"]
[PlyCount "90"]
[EventDate "2023.12.18"]
[EventType "swiss"]
[EventCountry "ENG"]
[SourceTitle "playchess.com"]
[Source "ChessBase"]
[SourceQuality "1"]
[TimeControl "40/6000+30:3000+30"]

1. e4 {[%emt 0:00:14]} g6 {[%emt 0:00:35]} 2. d4 {[%emt 0:00:12]} Bg7 {[%emt 0:00:06]} 3. Nc3 {[%emt 0:00:06]} c6 {[%emt 0:00:25]} 4. Nf3 {[%emt 0:00:14]} d6 {[%emt 0:00:06]} 5. h3 {[%emt 0:00:39]} Nf6 {[%emt 0:00:09]} 6. a4 {[%emt 0:00:13]} O-O {[%emt 0:00:19]} 7. Be3 {[%emt 0:00:17]} Nbd7 {[%emt 0:00:14]} 8. a5 {[%emt 0:00:10]} Re8 {[%emt 0:06:04]} 9. Bc4 {[%emt 0:01:52]} e6 {[%emt 0:09:35]} 10. d5 {[%emt 0:08:20]} exd5 {[%emt 0:02:40]} 11. exd5 {[%emt 0:00:17]} Bh6 {[%emt 0:15:56]} 12. O-O {[%emt 0:01:22]} Bxe3 {[%emt 0:00:27]} 13. fxe3 {[%emt 0:00:01]} c5 {[%emt 0:01:48]} 14. Qd3 {[%emt 0:09:09]} Ne5 {[%emt 0:05:18]} 15. Nxe5 {[%emt 0:00:55]} Rxe5 {[%emt 0:00:08]} 16. Rf3 {[%emt 0:03:18]} Rf5 {[%emt 0:22:08]} 17. Rxf5 {[%emt 0:03:09]} Bxf5 {[%emt 0:00:09]} 18. e4 {[%emt 0:00:04]} Bd7 {[%emt 0:08:06]} 19. Qf3 {[%emt 0:04:59]} Qe7 {[%emt 0:01:59]} 20. Re1 {[%emt 0:04:16]} Qe5 {[%emt 0:02:29]} 21. Rf1 {[%emt 0:03:02]} Kg7 {[%emt 0:00:24]} 22. Kh1 {[%emt 0:01:19]} Rf8 {[%emt 0:01:19]} 23. b3 {[%emt 0:01:44]} h5 {[%emt 0:04:07]} 24. Re1 {[%emt 0:04:22]} Rh8 {[%emt 0:17:09]} 25. Nd1 {[%emt 0:01:45]} Bg4 {[%emt 0:01:04]} 26. Qc3 {[%emt 0:02:30]} Bxd1 {[%emt 0:02:15]} 27. Qxe5 {[%emt 0:00:01]} dxe5 {[%emt 0:00:24]} 28. Rxd1 {[%emt 0:00:02]} Nxe4 {[%emt 0:00:46]} 29. Re1 {[%emt 0:00:15]} f5 {[%emt 0:00:17]} 30. d6 {[%emt 0:00:29]} Kf6 {[%emt 0:01:51]} 31. Bd5 {[%emt 0:00:03]} Nxd6 {[%emt 0:00:15]} 32. c4 {[%emt 0:00:53]} e4 {[%emt 0:01:06]} 33. Kg1 {[%emt 0:00:32]} Re8 {[%emt 0:00:17]} 34. b4 {[%emt 0:00:31]} cxb4 {[%emt 0:02:15]} 35. Rb1 {[%emt 0:00:02]} Rc8 {[%emt 0:01:20]} 36. Rxb4 {[%emt 0:00:13]} Rc5 {[%emt 0:01:14]} 37. a6 {[%emt 0:01:08]} bxa6 {[%emt 0:00:21]} 38. Bg8 {[%emt 0:00:48]} a5 {[%emt 0:01:02]} 39. Rb3 {[%emt 0:00:01]} Rc8 {[%emt 0:01:08]} 40. Bd5 {[%emt 0:00:16]} Nxc4 {[%emt 0:01:20]} 41. Rb7 {[%emt 0:50:54]} Rc5 {[%emt 0:51:40]} 42. Bg8 {[%emt 0:00:19]} Ne5 {[%emt 0:00:00]} 43. Rxa7 {[%emt 0:00:00]} e3 {[%emt 0:00:00]} 44. Kf1 {[%emt 0:00:00]} Rc2 {[%emt 0:00:00]} 45. Ra6+ {[%emt 0:00:00]} Kg7 {[%emt 0:00:00]} 0-1

[Event "Caplin Hastings Masters 2023-24"]
[Site "Hastings"]
[Date "2023.12.30"]
[Round "3.28"]
[White "Walker, Martin G"]
[Black "Lishoy Gengis Paratazham, Dildarav"]
[Result "0-1"]
[ECO "C41"]
[WhiteElo "2090"]
[BlackElo "1743"]
[Annotator "NA"]
[PlyCount "80"]
[EventDate "2023.12.18"]
[EventType "swiss"]
[EventCountry "ENG"]
[SourceTitle "playchess.com"]
[Source "ChessBase"]
[SourceQuality "1"]
[TimeControl "40/6000+30:3000+30"]

1. e4 {[%emt 0:00:03]} d6 {[%emt 0:00:06]} 2. d4 {[%emt 0:00:07]} Nf6 {[%emt 0:00:05]} 3. Nc3 {[%emt 0:00:04]} e5 {[%emt 0:00:07]} 4. Nf3 {[%emt 0:00:20]} Nbd7 {[%emt 0:00:08]} 5. Bc4 {[%emt 0:01:03]} Be7 {[%emt 0:00:53]} 6. O-O {[%emt 0:00:22]} O-O {[%emt 0:00:11]} 7. a4 {[%emt 0:01:04]} c6 {[%emt 0:01:25]} 8. dxe5 {[%emt 0:09:59]} dxe5 {[%emt 0:02:38]} 9. Qe2 {[%emt 0:00:05]} Qc7 {[%emt 0:00:47]} 10. h3 {[%emt 0:11:07]} Nc5 {[%emt 0:01:34]} 11. b3 {[%emt 0:14:32]} Ne6 {[%emt 0:07:17]} 12. Be3 {[%emt 0:00:05]} Bb4 {[%emt 0:00:38]} 13. Na2 {[%emt 0:02:03]} Bd6 {[%emt 0:00:45]} 14. Ng5 {[%emt 0:01:09]} Nc5 {[%emt 0:07:57]} 15. Rfd1 {[%emt 0:11:43]} b5 {[%emt 0:14:39]} 16. Bxc5 {[%emt 0:02:06]} Bxc5 {[%emt 0:00:09]} 17. axb5 {[%emt 0:00:06]} cxb5 {[%emt 0:00:09]} 18. Bxb5 {[%emt 0:00:05]} h6 {[%emt 0:00:17]} 19. Nf3 {[%emt 0:00:06]} Bb7 {[%emt 0:00:14]} 20. Nd2 {[%emt 0:04:02]} Rad8 {[%emt 0:02:17]} 21. Bd3 {[%emt 0:03:31]} g6 {[%emt 0:04:24]} 22. g3 {[%emt 0:30:53]} Bc8 {[%emt 0:07:24]} 23. Kg2 {[%emt 0:01:20]} Qe7 {[%emt 0:01:07]} 24. Rh1 {[%emt 0:01:48]} Nh5 {[%emt 0:01:17]} 25. Nf3 {[%emt 0:03:52]} Bb7 {[%emt 0:03:15]} 26. b4 {[%emt 0:05:04]} Bb6 {[%emt 0:01:03]} 27. Rad1 {[%emt 0:00:14]} f5 {[%emt 0:05:35]} 28. Bc4+ {[%emt 0:00:04]} Kh7 {[%emt 0:00:36]} 29. Bd5 {[%emt 0:00:04]} Bxd5 {[%emt 0:01:00]} 30. exd5 {[%emt 0:04:09]} e4 {[%emt 0:00:39]} 31. Nd2 {[%emt 0:00:06]} Rxd5 {[%emt 0:01:36]} 32. Rhe1 {[%emt 0:01:18]} Rfd8 {[%emt 0:01:07]} 33. Nf1 {[%emt 0:01:39]} f4 {[%emt 0:00:52]} 34. f3 {[%emt 0:01:34]} Nxg3 {[%emt 0:00:11]} 35. Nxg3 {[%emt 0:00:08]} Qg5 {[%emt 0:00:16]} 36. Rxd5 {[%emt 0:01:40]} Qxg3+ {[%emt 0:00:35]} 37. Kh1 {[%emt 0:00:03]} Rxd5 {[%emt 0:00:47]} 38. fxe4 {[%emt 0:00:38]} Qxh3+ {[%emt 0:00:08]} 39. Qh2 {[%emt 0:00:03]} Qf3+ {[%emt 0:00:07]} 40. Qg2 {[%emt 0:00:04]} Rh5# {[%emt 0:00:05]} 0-1

[Event "Caplin Hastings Masters 2023-24"]
[Site "Hastings"]
[Date "2023.12.30"]
[Round "3.29"]
[White "Sivanandan, Bodhana"]
[Black "Gimenez Menchon, Cesar"]
[Result "1-0"]
[ECO "B07"]
[WhiteElo "1857"]
[BlackElo "2088"]
[Annotator "NA"]
[PlyCount "73"]
[EventDate "2023.12.18"]
[EventType "swiss"]
[EventCountry "ENG"]
[SourceTitle "playchess.com"]
[Source "ChessBase"]
[SourceQuality "1"]
[TimeControl "40/6000+30:3000+30"]

1. e4 {[%emt 0:06:00]} d6 {[%emt 0:00:07]} 2. d4 {[%emt 0:00:14]} Nf6 {[%emt 0:00:06]} 3. Nc3 {[%emt 0:00:24]} e5 {[%emt 0:00:06]} 4. dxe5 {[%emt 0:00:26]} dxe5 {[%emt 0:00:08]} 5. Qxd8+ {[%emt 0:00:33]} Kxd8 {[%emt 0:00:05]} 6. Bg5 {[%emt 0:00:40]} Be7 {[%emt 0:00:19]} 7. O-O-O+ {[%emt 0:00:31]} Nbd7 {[%emt 0:00:20]} 8. Nf3 {[%emt 0:00:53]} Ng4 {[%emt 0:00:51]} 9. Bxe7+ {[%emt 0:00:47]} Kxe7 {[%emt 0:00:09]} 10. Nd5+ {[%emt 0:00:37]} Kd8 {[%emt 0:13:23]} 11. Ng5 {[%emt 0:00:54]} Nh6 {[%emt 0:01:09]} 12. g4 {[%emt 0:01:39]} c6 {[%emt 0:03:38]} 13. Ne3 {[%emt 0:00:45]} Ke7 {[%emt 0:01:46]} 14. Nf5+ {[%emt 0:01:04]} Nxf5 {[%emt 0:00:25]} 15. gxf5 {[%emt 0:00:15]} Nc5 {[%emt 0:12:16]} 16. b4 {[%emt 0:23:06]} Na6 {[%emt 0:11:31]} 17. a3 {[%emt 0:09:30]} f6 {[%emt 0:08:51]} 18. Nf3 {[%emt 0:02:34]} g6 {[%emt 0:13:49]} 19. Bd3 {[%emt 0:11:57]} b5 {[%emt 0:06:07]} 20. Rhg1 {[%emt 0:04:33]} Kf7 {[%emt 0:01:50]} 21. c4 {[%emt 0:04:11]} Nc7 {[%emt 0:00:07]} 22. cxb5 {[%emt 0:05:01]} cxb5 {[%emt 0:00:09]} 23. Kb2 {[%emt 0:00:20]} Bb7 {[%emt 0:03:06]} 24. Bxb5 {[%emt 0:02:02]} Rhd8 {[%emt 0:00:36]} 25. Bd3 {[%emt 0:02:28]} Ne8 {[%emt 0:04:59]} 26. fxg6+ {[%emt 0:03:31]} hxg6 {[%emt 0:00:10]} 27. Nh4 {[%emt 0:01:27]} Rd4 {[%emt 0:03:20]} 28. Bc2 {[%emt 0:01:57]} Rxd1 {[%emt 0:07:18]} 29. Rxd1 {[%emt 0:00:10]} Bc6 {[%emt 0:03:06]} 30. f3 {[%emt 0:06:25]} g5 {[%emt 0:03:04]} 31. Nf5 {[%emt 0:00:19]} Ng7 {[%emt 0:00:32]} 32. Bb3+ {[%emt 0:00:56]} Kf8 {[%emt 0:00:11]} 33. Rd6 {[%emt 0:00:16]} Nxf5 {[%emt 0:02:25]} 34. Rxf6+ {[%emt 0:00:15]} Ke7 {[%emt 0:01:33]} 35. Rxf5 {[%emt 0:00:07]} Kd6 {[%emt 0:02:41]} 36. Rf6+ {[%emt 0:00:07]} Kc7 {[%emt 0:00:05]} 37. Rxc6+ {[%emt 0:00:04]} 1-0

[Event "Caplin Hastings Masters 2023-24"]
[Site "Hastings"]
[Date "2023.12.30"]
[Round "3.30"]
[White "Weersing, Abigail Riis"]
[Black "Han, Qixuan"]
[Result "1-0"]
[ECO "D10"]
[WhiteElo "2056"]
[BlackElo "1603"]
[Annotator "NA"]
[PlyCount "89"]
[EventDate "2023.12.18"]
[EventType "swiss"]
[EventCountry "ENG"]
[SourceTitle "playchess.com"]
[Source "ChessBase"]
[SourceQuality "1"]
[TimeControl "40/6000+30:3000+30"]

1. d4 {[%emt 0:00:06]} d5 {[%emt 0:00:06]} 2. c4 {[%emt 0:00:05]} c6 {[%emt 0:00:03]} 3. Nc3 {[%emt 0:00:05]} Nf6 {[%emt 0:00:08]} 4. e3 {[%emt 0:00:05]} Bf5 {[%emt 0:00:11]} 5. cxd5 {[%emt 0:00:25]} cxd5 {[%emt 0:00:07]} 6. Qb3 {[%emt 0:00:05]} Nc6 {[%emt 0:00:05]} 7. Qxb7 {[%emt 0:01:22]} Bd7 {[%emt 0:00:11]} 8. Qb3 {[%emt 0:00:14]} Rb8 {[%emt 0:00:07]} 9. Qd1 {[%emt 0:00:09]} e5 {[%emt 0:00:44]} 10. dxe5 {[%emt 0:03:07]} Nxe5 {[%emt 0:00:37]} 11. Be2 {[%emt 0:03:05]} Bd6 {[%emt 0:00:38]} 12. Nf3 {[%emt 0:03:18]} Nxf3+ {[%emt 0:00:13]} 13. Bxf3 {[%emt 0:00:08]} Qc7 {[%emt 0:00:56]} 14. h3 {[%emt 0:06:05]} O-O {[%emt 0:00:55]} 15. O-O {[%emt 0:02:48]} Rfd8 {[%emt 0:00:48]} 16. Qd3 {[%emt 0:09:03]} Bh2+ {[%emt 0:02:09]} 17. Kh1 {[%emt 0:00:08]} Be5 {[%emt 0:00:06]} 18. Rd1 {[%emt 0:05:03]} Ne4 {[%emt 0:04:42]} 19. Nxe4 {[%emt 0:24:31]} dxe4 {[%emt 0:00:36]} 20. Qxe4 {[%emt 0:00:08]} Bc6 {[%emt 0:00:23]} 21. Qg4 {[%emt 0:15:52]} Rxd1+ {[%emt 0:03:45]} 22. Bxd1 {[%emt 0:00:01]} Qa5 {[%emt 0:06:12]} 23. f4 {[%emt 0:11:05]} Qe1+ {[%emt 0:02:00]} 24. Kh2 {[%emt 0:00:02]} Bf6 {[%emt 0:00:58]} 25. Qe2 {[%emt 0:06:55]} Qa5 {[%emt 0:02:35]} 26. Bd2 {[%emt 0:05:37]} Qd5 {[%emt 0:01:40]} 27. Bc3 {[%emt 0:00:37]} Bxc3 {[%emt 0:02:50]} 28. bxc3 {[%emt 0:00:01]} h5 {[%emt 0:00:53]} 29. Bb3 {[%emt 0:00:56]} Qe4 {[%emt 0:00:57]} 30. Bc2 {[%emt 0:00:19]} Qd5 {[%emt 0:00:13]} 31. e4 {[%emt 0:01:07]} Qa5 {[%emt 0:01:04]} 32. Qc4 {[%emt 0:01:13]} Qc7 {[%emt 0:01:49]} 33. e5 {[%emt 0:01:57]} Rb2 {[%emt 0:01:55]} 34. Rc1 {[%emt 0:06:55]} Qb7 {[%emt 0:01:16]} 35. Qd3 {[%emt 0:00:53]} g6 {[%emt 0:01:30]} 36. Qd8+ {[%emt 0:00:38]} Kh7 {[%emt 0:00:16]} 37. Qg5 {[%emt 0:00:24]} Rxa2 {[%emt 0:00:56]} 38. f5 {[%emt 0:01:38]} Be4 {[%emt 0:02:13]} 39. fxg6+ {[%emt 0:00:43]} fxg6 {[%emt 0:00:18]} 40. Bxe4 {[%emt 0:00:58]} Qxe4 {[%emt 0:00:02]} 41. Rf1 {[%emt 0:04:05]} Qd5 {[%emt 0:04:38]} 42. Qe7+ {[%emt 0:02:54]} Kh6 {[%emt 0:00:31]} 43. Qf8+ {[%emt 0:00:07]} Kg5 {[%emt 0:00:06]} 44. h4+ {[%emt 0:01:36]} Kxh4 {[%emt 0:00:19]} 45. Qf4# {[%emt 0:00:10]} 1-0

[Event "Caplin Hastings Masters 2023-24"]
[Site "Hastings"]
[Date "2023.12.30"]
[Round "3.31"]
[White "Vasiliadis, Theodoros"]
[Black "Evenshaug, Amadeus Hestvik"]
[Result "1/2-1/2"]
[ECO "B41"]
[WhiteElo "1845"]
[BlackElo "2041"]
[Annotator "NA RC"]
[PlyCount "89"]
[EventDate "2023.12.18"]
[EventType "swiss"]
[EventCountry "ENG"]
[SourceTitle "playchess.com"]
[Source "ChessBase"]
[SourceQuality "1"]
[TimeControl "40/6000+30:3000+30"]

1. e4 {[%emt 0:00:05]} c5 {[%emt 0:00:50]} 2. Nf3 {[%emt 0:00:07]} e6 {[%emt 0:00:34]} 3. d4 {[%emt 0:00:20]} cxd4 {[%emt 0:00:22]} 4. Nxd4 {[%emt 0:00:13]} a6 {[%emt 0:00:18]} 5. c4 {[%emt 0:00:11]} Qc7 {[%emt 0:00:26]} 6. Nc3 {[%emt 0:00:48]} Nf6 {[%emt 0:00:41]} 7. a3 {[%emt 0:01:20]} Be7 {[%emt 0:03:38]} 8. Be3 {[%emt 0:01:27]} d6 {[%emt 0:00:20]} 9. Be2 {[%emt 0:01:13]} b6 {[%emt 0:00:26]} 10. Rc1 {[%emt 0:00:40]} Bb7 {[%emt 0:00:54]} 11. f3 {[%emt 0:00:09]} Nbd7 {[%emt 0:00:38]} 12. b4 {[%emt 0:06:13]} Rc8 {[%emt 0:03:00]} 13. Qd2 {[%emt 0:03:08]} O-O {[%emt 0:09:35]} 14. O-O {[%emt 0:00:59]} Qb8 {[%emt 0:02:56]} 15. Rfd1 {[%emt 0:05:51]} Rfe8 {[%emt 0:06:34]} 16. Kh1 {[%emt 0:14:59]} Bd8 {[%emt 0:21:30]} 17. Bg1 {[%emt 0:06:41]} Bc7 {[%emt 0:05:03]} 18. Qa2 {[%emt 0:10:11]} h5 {[%emt 0:06:04]} 19. b5 {[%emt 0:08:36]} a5 {[%emt 0:04:15]} 20. Nc6 {[%emt 0:02:50]} Qa8 {[%emt 0:03:45]} 21. Qd2 {[%emt 0:09:42]} Nc5 {[%emt 0:10:16]} 22. Qg5 {[%emt 0:12:48]} Bxc6 {[%emt 0:05:38]} 23. bxc6 {[%emt 0:02:37]} Qxc6 {[%emt 0:00:56]} 24. Nb5 {[%emt 0:01:40]} e5 {[%emt 0:06:28]} 25. Na7 {[%emt 0:02:50]} Qa4 {[%emt 0:01:54]} 26. Nxc8 {[%emt 0:00:34]} Ne6 {[%emt 0:02:56]} 27. Qd2 {[%emt 0:03:26]} Rxc8 {[%emt 0:00:11]} 28. Qc2 {[%emt 0:01:08]} Qc6 {[%emt 0:01:08]} 29. Qb3 {[%emt 0:01:01]} Nf4 {[%emt 0:04:38]} 30. Bf1 {[%emt 0:00:13]} h4 {[%emt 0:01:06]} 31. Qb5 {[%emt 0:02:14]} Qa8 {[%emt 0:01:38]} 32. Bxb6 {[%emt 0:09:09]} h3 {[%emt 0:06:17]} 33. Bxc7 {[%emt 0:01:08]} Rxc7 {[%emt 0:01:24]} 34. Rxd6 {[%emt 0:01:47]} Nxe4 {[%emt 0:00:34]} 35. Qxe5 {[%emt 0:00:59]} hxg2+ {[%emt 0:00:12]} 36. Bxg2 {[%emt 0:00:28]} Nxd6 {[%emt 0:00:45]} 37. Qxf4 {[%emt 0:00:39]} Qc6 {[%emt 0:00:31]} 38. Qd4 {[%emt 0:00:34]} Nf5 {[%emt 0:00:28]} 39. Qf4 {[%emt 0:00:15]} Qc5 {[%emt 0:00:33]} 40. Re1 {[%emt 0:00:32]} g6 {[%emt 0:00:32]} 41. Bh3 {[%emt 0:10:59]} Qxc4 {[%emt 0:08:57]} 42. Qxc4 {[%emt 0:02:51]} Rxc4 {[%emt 0:00:07]} 43. Bxf5 {[%emt 0:01:20]} gxf5 {[%emt 0:00:08]} 44. Re5 {[%emt 0:04:22]} Ra4 {[%emt 0:00:17]} 45. Rxf5 {[%emt 0:01:10]} 1/2-1/2

[Event "Caplin Hastings Masters 2023-24"]
[Site "Hastings"]
[Date "2023.12.30"]
[Round "3.32"]
[White "Lahlum, Hans Olav"]
[Black "Verbytski, Oleg"]
[Result "1/2-1/2"]
[ECO "D36"]
[WhiteElo "2037"]
[BlackElo "1771"]
[Annotator "NA"]
[PlyCount "58"]
[EventDate "2023.12.18"]
[EventType "swiss"]
[EventCountry "ENG"]
[SourceTitle "playchess.com"]
[Source "ChessBase"]
[SourceQuality "1"]
[TimeControl "40/6000+30:3000+30"]

1. d4 {[%emt 0:00:05]} d5 {[%emt 0:00:03]} 2. c4 {[%emt 0:00:06]} e6 {[%emt 0:00:02]} 3. Nc3 {[%emt 0:00:06]} Nf6 {[%emt 0:00:04]} 4. cxd5 {[%emt 0:00:48]} exd5 {[%emt 0:00:05]} 5. Bg5 {[%emt 0:00:17]} Nbd7 {[%emt 0:00:05]} 6. Nf3 {[%emt 0:00:20]} Be7 {[%emt 0:00:07]} 7. e3 {[%emt 0:01:57]} O-O {[%emt 0:00:05]} 8. Bd3 {[%emt 0:00:51]} Re8 {[%emt 0:00:09]} 9. Qc2 {[%emt 0:00:29]} c6 {[%emt 0:00:04]} 10. O-O {[%emt 0:00:14]} h6 {[%emt 0:00:03]} 11. Bh4 {[%emt 0:00:13]} Ne4 {[%emt 0:00:04]} 12. Bxe7 {[%emt 0:00:47]} Qxe7 {[%emt 0:00:05]} 13. b4 {[%emt 0:01:23]} Ndf6 {[%emt 0:24:30]} 14. b5 {[%emt 0:01:39]} Bd7 {[%emt 0:01:14]} 15. bxc6 {[%emt 0:00:27]} Bxc6 {[%emt 0:00:04]} 16. Rac1 {[%emt 0:12:19]} Rac8 {[%emt 0:00:39]} 17. Qb2 {[%emt 0:01:04]} Rc7 {[%emt 0:04:38]} 18. Ne5 {[%emt 0:10:05]} Rec8 {[%emt 0:00:49]} 19. Rc2 {[%emt 0:09:22]} Nd7 {[%emt 0:06:36]} 20. Nxd7 {[%emt 0:07:23]} Qxd7 {[%emt 0:01:41]} 21. Rfc1 {[%emt 0:02:23]} Nxc3 {[%emt 0:06:32]} 22. Qxc3 {[%emt 0:04:43]} g6 {[%emt 0:01:25]} 23. h3 {[%emt 0:02:41]} Qd8 {[%emt 0:01:41]} 24. Be2 {[%emt 0:05:10]} Ba4 {[%emt 0:06:01]} 25. Qxc7 {[%emt 0:02:19]} Rxc7 {[%emt 0:00:13]} 26. Rxc7 {[%emt 0:00:12]} Bc6 {[%emt 0:00:01]} 27. R1xc6 {[%emt 0:01:15]} bxc6 {[%emt 0:05:54]} 28. Rxc6 {[%emt 0:00:26]} Qa5 {[%emt 0:00:04]} 29. Ra6 {[%emt 0:00:41]} Qe1+ {[%emt 0:00:08]} 1/2-1/2

[Event "Caplin Hastings Masters 2023-24"]
[Site "Hastings"]
[Date "2023.12.30"]
[Round "3.33"]
[White "Han, Qixiang"]
[Black "Binks, Michael"]
[Result "1-0"]
[ECO "E11"]
[WhiteElo "1711"]
[BlackElo "2035"]
[Annotator "NA RC"]
[PlyCount "121"]
[EventDate "2023.12.18"]
[EventType "swiss"]
[EventCountry "ENG"]
[SourceTitle "playchess.com"]
[Source "ChessBase"]
[SourceQuality "1"]
[TimeControl "40/6000+30:3000+30"]

1. d4 {[%emt 0:00:02]} Nf6 {[%emt 0:00:16]} 2. c4 {[%emt 0:00:05]} e6 {[%emt 0:00:00]} 3. g3 {[%emt 0:00:02]} Bb4+ {[%emt 0:02:13]} 4. Bd2 {[%emt 0:00:09]} Bxd2+ {[%emt 0:01:16]} 5. Qxd2 {[%emt 0:00:14]} Ne4 {[%emt 0:00:49]} 6. Qc2 {[%emt 0:00:28]} f5 {[%emt 0:02:18]} 7. Bg2 {[%emt 0:00:45]} d5 {[%emt 0:01:59]} 8. Nf3 {[%emt 0:00:58]} O-O {[%emt 0:01:18]} 9. O-O {[%emt 0:00:39]} c6 {[%emt 0:05:09]} 10. Nc3 {[%emt 0:01:22]} Nd7 {[%emt 0:01:21]} 11. Nd2 {[%emt 0:03:42]} Ndf6 {[%emt 0:21:37]} 12. f3 {[%emt 0:02:16]} Nxd2 {[%emt 0:09:55]} 13. Qxd2 {[%emt 0:00:46]} dxc4 {[%emt 0:01:00]} 14. e4 {[%emt 0:04:13]} Rb8 {[%emt 0:09:34]} 15. Rad1 {[%emt 0:04:31]} b5 {[%emt 0:01:47]} 16. Qf4 {[%emt 0:03:21]} Qb6 {[%emt 0:07:01]} 17. Kh1 {[%emt 0:01:47]} Bd7 {[%emt 0:05:07]} 18. Qe5 {[%emt 0:06:30]} Rfe8 {[%emt 0:03:09]} 19. Rd2 {[%emt 0:12:01]} Rbd8 {[%emt 0:03:22]} 20. Rfd1 {[%emt 0:03:15]} a6 {[%emt 0:04:52]} 21. h3 {[%emt 0:02:40]} Bc8 {[%emt 0:02:03]} 22. Kh2 {[%emt 0:03:33]} Nd7 {[%emt 0:04:31]} 23. Qf4 {[%emt 0:00:21]} Nf8 {[%emt 0:00:44]} 24. h4 {[%emt 0:03:32]} h6 {[%emt 0:03:25]} 25. h5 {[%emt 0:00:30]} Nh7 {[%emt 0:00:56]} 26. Qh4 {[%emt 0:07:55]} Nf6 {[%emt 0:01:21]} 27. Kh1 {[%emt 0:02:19]} Qc7 {[%emt 0:03:47]} 28. Ne2 {[%emt 0:06:32]} Qa5 {[%emt 0:02:41]} 29. a3 {[%emt 0:00:41]} Bb7 {[%emt 0:00:25]} 30. Nc3 {[%emt 0:01:10]} Rd7 {[%emt 0:00:35]} 31. g4 {[%emt 0:01:17]} fxg4 {[%emt 0:04:37]} 32. fxg4 {[%emt 0:00:20]} Qd8 {[%emt 0:00:12]} 33. Qg3 {[%emt 0:01:51]} Nh7 {[%emt 0:00:53]} 34. Qf2 {[%emt 0:04:52]} Rf8 {[%emt 0:00:25]} 35. Qg3 {[%emt 0:00:30]} Qg5 {[%emt 0:00:16]} 36. e5 {[%emt 0:02:39]} Rf4 {[%emt 0:02:00]} 37. Ne4 {[%emt 0:00:55]} Qxg4 {[%emt 0:01:07]} 38. Qxg4 {[%emt 0:00:12]} Rxg4 {[%emt 0:00:07]} 39. Nc5 {[%emt 0:00:03]} Rf7 {[%emt 0:00:59]} 40. Nxe6 {[%emt 0:01:35]} Rf5 {[%emt 0:01:33]} 41. Nc5 {[%emt 0:51:00]} Rxh5+ {[%emt 0:50:35]} 42. Kg1 {[%emt 0:00:05]} Bc8 {[%emt 0:00:26]} 43. Rf2 {[%emt 0:00:56]} Bf5 {[%emt 0:02:31]} 44. Kf1 {[%emt 0:00:45]} Bd3+ {[%emt 0:01:24]} 45. Nxd3 {[%emt 0:00:29]} Rxd4 {[%emt 0:00:17]} 46. Bf3 {[%emt 0:02:49]} Rf5 {[%emt 0:00:00]} 47. Ne1 {[%emt 0:00:00]} Rdf4 {[%emt 0:00:00]} 48. e6 {[%emt 0:00:00]} Nf6 {[%emt 0:00:00]} 49. Rd8+ {[%emt 0:00:00]} Kh7 {[%emt 0:00:00]} 50. e7 {[%emt 0:00:00]} Re5 {[%emt 0:00:00]} 51. Ng2 {[%emt 0:00:00]} Rff5 {[%emt 0:00:00]} 52. e8=Q {[%emt 0:00:00]} Nxe8 {[%emt 0:00:00]} 53. Be4 {[%emt 0:00:00]} Rxe4 {[%emt 0:00:00]} 54. Rxf5 {[%emt 0:00:00]} Nf6 {[%emt 0:00:00]} 55. Rc5 {[%emt 0:00:00]} Re6 {[%emt 0:00:00]} 56. Rc8 {[%emt 0:00:00]} Ne4 {[%emt 0:00:00]} 57. R5xc6 {[%emt 0:00:00]} Nd2+ {[%emt 0:00:00]} 58. Kg1 {[%emt 0:00:00]} Re2 {[%emt 0:00:00]} 59. Rf8 {[%emt 0:00:00]} Nb3 {[%emt 0:00:00]} 60. Nf4 {[%emt 0:00:00]} Rxb2 {[%emt 0:00:00]} 61. Ng6 {[%emt 0:00:00]} 1-0

[Event "Caplin Hastings Masters 2023-24"]
[Site "Hastings"]
[Date "2023.12.30"]
[Round "3.34"]
[White "Patel, Zain"]
[Black "Thompson, Ian D"]
[Result "1/2-1/2"]
[ECO "D70"]
[WhiteElo "1841"]
[BlackElo "2011"]
[Annotator "NA RC"]
[PlyCount "103"]
[EventDate "2023.12.18"]
[EventType "swiss"]
[EventCountry "ENG"]
[SourceTitle "playchess.com"]
[Source "ChessBase"]
[SourceQuality "1"]
[TimeControl "40/6000+30:3000+30"]

1. d4 {[%emt 0:00:06]} d5 {[%emt 0:00:06]} 2. Nf3 {[%emt 0:00:54]} Nf6 {[%emt 0:00:35]} 3. e3 {[%emt 0:00:34]} g6 {[%emt 0:02:54]} 4. c4 {[%emt 0:04:20]} Bg7 {[%emt 0:00:22]} 5. cxd5 {[%emt 0:05:19]} Nxd5 {[%emt 0:00:24]} 6. e4 {[%emt 0:02:31]} Nb6 {[%emt 0:00:23]} 7. h3 {[%emt 0:03:45]} O-O {[%emt 0:01:25]} 8. Be2 {[%emt 0:01:13]} c5 {[%emt 0:09:42]} 9. dxc5 {[%emt 0:08:45]} Qxd1+ {[%emt 0:02:29]} 10. Bxd1 {[%emt 0:02:43]} N6d7 {[%emt 0:02:38]} 11. Nc3 {[%emt 0:02:33]} Nxc5 {[%emt 0:00:24]} 12. Bc2 {[%emt 0:13:07]} Nc6 {[%emt 0:04:12]} 13. a3 {[%emt 0:08:12]} Be6 {[%emt 0:09:06]} 14. Be3 {[%emt 0:03:50]} b6 {[%emt 0:05:12]} 15. O-O {[%emt 0:02:23]} Bc4 {[%emt 0:08:50]} 16. Rfd1 {[%emt 0:05:44]} Rfd8 {[%emt 0:01:01]} 17. Rac1 {[%emt 0:11:36]} Nb3 {[%emt 0:22:16]} 18. Rxd8+ {[%emt 0:05:07]} Rxd8 {[%emt 0:01:45]} 19. Bxb3 {[%emt 0:00:58]} Bxb3 {[%emt 0:00:02]} 20. Nd5 {[%emt 0:00:38]} Bxd5 {[%emt 0:04:05]} 21. exd5 {[%emt 0:00:15]} Ne5 {[%emt 0:00:58]} 22. Rc7 {[%emt 0:07:29]} Nxf3+ {[%emt 0:00:55]} 23. gxf3 {[%emt 0:00:07]} Bxb2 {[%emt 0:00:28]} 24. Rxa7 {[%emt 0:00:17]} b5 {[%emt 0:02:22]} 25. Rb7 {[%emt 0:03:29]} Bxa3 {[%emt 0:02:19]} 26. Rxb5 {[%emt 0:00:08]} f6 {[%emt 0:03:48]} 27. Kf1 {[%emt 0:03:00]} Rc8 {[%emt 0:04:47]} 28. Ra5 {[%emt 0:00:57]} Bd6 {[%emt 0:00:34]} 29. Ra4 {[%emt 0:02:42]} Rb8 {[%emt 0:00:44]} 30. Ra5 {[%emt 0:01:20]} Kf7 {[%emt 0:01:31]} 31. Kg2 {[%emt 0:01:01]} Bb4 {[%emt 0:04:20]} 32. Ra1 {[%emt 0:02:25]} Bd6 {[%emt 0:03:00]} 33. Ra5 {[%emt 0:00:45]} g5 {[%emt 0:01:10]} 34. Ra4 {[%emt 0:01:48]} Rb5 {[%emt 0:02:05]} 35. Rd4 {[%emt 0:00:25]} Kg6 {[%emt 0:00:27]} 36. h4 {[%emt 0:01:47]} Be5 {[%emt 0:04:02]} 37. Rd1 {[%emt 0:01:12]} gxh4 {[%emt 0:03:09]} 38. Kh3 {[%emt 0:01:37]} Rb4 {[%emt 0:01:35]} 39. Rg1+ {[%emt 0:00:53]} Kf7 {[%emt 0:01:07]} 40. Rg4 {[%emt 0:01:31]} Rb1 {[%emt 0:01:01]} 41. f4 {[%emt 0:06:36]} Bd6 {[%emt 0:00:33]} 42. Rxh4 {[%emt 0:04:57]} Rh1+ {[%emt 0:00:57]} 43. Kg3 {[%emt 0:00:25]} Rxh4 {[%emt 0:00:11]} 44. Kxh4 {[%emt 0:00:04]} Kg6 {[%emt 0:00:10]} 45. Kg4 {[%emt 0:02:25]} h5+ {[%emt 0:00:54]} 46. Kh4 {[%emt 0:00:12]} Kf5 {[%emt 0:00:29]} 47. Kxh5 {[%emt 0:01:16]} Bxf4 {[%emt 0:03:08]} 48. Bxf4 {[%emt 0:06:42]} Kxf4 {[%emt 0:00:03]} 49. Kg6 {[%emt 0:00:14]} Ke5 {[%emt 0:00:14]} 50. Kf7 {[%emt 0:00:12]} Kd6 {[%emt 0:02:08]} 51. f4 {[%emt 0:00:32]} Kd7 {[%emt 0:04:48]} 52. Kg7 {[%emt 0:00:22]} 1/2-1/2